Cogmind - Beta 12 @@@ ROGUE MODE // 2023.03.18 @ 15:39:18 Player: Palikka Result: Destroyed by DAS Turret with DAS Cannon Performance ------------- Evolutions (0) 0 Regions Visited (3) 600 Robots Destroyed (20) 100 Value Destroyed (483) 483 Prototype IDs (23) 460 Alien Tech Used (0) 0 Bonus (246) 246 TOTAL SCORE: 1889 Bonus ------- Aligned with FarCom 300 Friendly Fire -54 Cogmind --------- Core Integrity 0/250 Matter 287/300 Energy 100/100 System Corruption 0% Temperature Cool (0) Movement Treading (160) Location -10/Exiles Parts ------- > --- POWER (1) -------- (None) > --- PROPULSION (2) --- Light Treads > --- UTILITY (2) ------ (None) > --- WEAPON (2) ------- Heavy Assault Rifle Mace > --- INVENTORY (5) ---- High-capacity Matter Pod (106) Improved Targeting Computer Improved Targeting Computer Hardened Light Armor Plating Heavy Assault Rifle Peak State ------------ > --- POWER ------------ Light Nuclear Core > --- PROPULSION ------- Light Treads Compact Wheel > --- UTILITY ---------- Large Storage Unit Hardened Light Armor Plating > --- WEAPON ----------- Heavy Assault Rifle Heavy Assault Rifle > --- INVENTORY -------- Ion Engine Reinforced Deuterium Engine Light Treads Improved Heat Sink High-capacity Matter Pod Improved Targeting Computer Improved Targeting Computer Hardened Light Armor Plating Hardened Light Armor Plating Hardened Light Armor Plating Heavy Assault Rifle Heavy Assault Rifle Rocket Launcher Rocket Launcher Mace [Rating: 15] Favorites ----------- Power Ion Engine Engine Ion Engine Power Core Light Nuclear Core Propulsion Light Treads Treads Light Treads Wheel Compact Wheel Utility Large Storage Unit Storage Large Storage Unit Protection Hardened Light Armor Plating Weapon Heavy Assault Rifle Ballistic Gun Heavy Assault Rifle Impact Weapon Mace Build | -11 -10 -10 -10 ------- Run | Jun Mat Min Exi Slots Evolved . | . . . . Power . | . . . . Propulsion . | . . . . Utility . | . . . . Weapon . | . . . . Parts Attached 23 | 5 13 1 4 Power 4 | 1 2 . 1 Engine 3 | 1 1 . 1 Core 1 | . 1 . . Reactor . | . . . . Propulsion 5 | 2 1 1 1 Treads 4 | 2 1 . 1 Leg . | . . . . Wheel 1 | . . 1 . Hover . | . . . . Flight . | . . . . Utility 7 | 1 5 . 1 Device . | . . . . Storage 4 | 1 2 . 1 Processor . | . . . . Hackware . | . . . . Protection 3 | . 3 . . Artifact . | . . . . Weapon 7 | 1 5 . 1 Energy Gun . | . . . . Energy Cannon . | . . . . Ballistic Gun 6 | 1 5 . . Ballistic Cannon . | . . . . Launcher . | . . . . Special Weapon . | . . . . Impact Weapon 1 | . . . 1 Slashing Weapon . | . . . . Piercing Weapon . | . . . . Special Melee Weapon . | . . . . Unidentified Prototypes . | . . . . Parts Lost 5 | . . 1 4 Power 1 | . . . 1 Propulsion 3 | . . 1 2 Utility 1 | . . . 1 Weapon . | . . . . Highest Loss Streak 4 | . . 1 4 To Critical Strikes . | . . . . Average Slot Usage (%) 96 | . 95 99 99 Engine 8 | . 10 . 6 Core 5 | . 3 14 7 Treads 25 | . 28 23 14 Wheel 2 | . . 3 13 Storage 14 | . 14 14 14 Protection 12 | . 11 14 14 Ballistic Gun 26 | . 25 28 27 Naked Turns . | . . . . Heaviest Build 56 | 12 36 36 56 Greatest Support 40 | 40 40 40 40 Greatest Overweight (x) 3 | 3 . 2 3 Average Overweight (x) . | . . . 2 Largest Inventory Capacity 20 | 8 15 15 20 Average Capacity 14 | 7 14 15 15 Most Carried 15 | 5 15 15 15 Average Carried 13 | 3 12 14 14 Final Capacity 15 | 8 15 15 5 Final Carried 15 | 5 15 14 5 Class Distribution -------------------- 100% | Mutant Dominant Class ---------------- Mutant | -10/Materials Mutant | -10/Mines Mutant | -10/Exiles Resources | -11 -10 -10 -10 ----------- Run | Jun Mat Min Exi Matter Collected 845 | 250 459 129 7 Remotely . | . . . . Salvage Created 690 | . 589 101 . Parts 41 | . 39 2 . Haulers Intercepted 1 | . 1 . . Recyclers Shooed . | . . . . Parts Field Recycled . | . . . . Retrieved Matter . | . . . . Parts Self-Destructed . | . . . . Prevented . | . . . . Kills | -11 -10 -10 -10 ------- Run | Jun Mat Min Exi Combat Hostiles Destroyed 16 | . 14 2 . Guns 16 | . 14 2 . Classes Destroyed 6 | . 6 . . Hauler 1 | . 1 . . Recycler 1 | . 1 . . Mechanic 1 | . 1 . . Watcher 1 | . 1 . . Swarmer 6 | . 6 . . Grunt 10 | . 8 2 . Best Kill Streak 6 | . 6 2 . Combat Bots Only 3 | . 3 2 . Max Kills in Single Turn 1 | . 1 1 . Gunslinging . | . . . . Exploded . | . . . . Melee . | . . . . Uniques/NPCs Destroyed . | . . . . Combat | -11 -10 -10 -10 -------- Run | Jun Mat Min Exi Damage Taken 1328 | . 625 249 454 Core 253 | . 138 51 64 Absorbed by Shields . | . . . . Redirected to Shielding 19 | . 19 . . Core Remaining (%) 100 | 100 . . . Volleys Fired 89 | . 77 12 . Largest 2 | . 2 2 . Hottest 46 | . 46 46 . Shots Fired 126 | . 102 24 . Gun 126 | . 102 24 . Cannon . | . . . . Launcher . | . . . . Special . | . . . . Kinetic 126 | . 102 24 . Thermal . | . . . . Explosive . | . . . . Electromagnetic . | . . . . Robot Hit Streak 10 | . 10 5 . Robot Miss Streak 3 | . 3 2 . Penetration Max . | . . . . Secondary Targets 2 | . 1 1 . Max Gunslinging Chain 1 | . 1 1 . Shots Hit Robots 84 | . 66 17 1 Core Hits 34 | . 29 5 . Critical Kills 1 | . 1 . . Critical Parts Destroyed . | . . . . Critical Strikes 1 | . 1 . . Destroy 1 | . 1 . . Melee Attacks 1 | . . . 1 Impact 1 | . . . 1 Slashing . | . . . . Piercing . | . . . . Sneak Attacks . | . . . . Combat Hostiles . | . . . . Follow-up Attacks . | . . . . Damage Inflicted 1132 | . 816 262 54 Guns 1077 | . 815 262 . Cannons . | . . . . Explosions . | . . . . Melee 54 | . . . 54 Ramming 1 | . 1 . . Kinetic 1077 | . 815 262 . Thermal . | . . . . Explosive . | . . . . Electromagnetic . | . . . . Impact 54 | . . . 54 Slashing . | . . . . Piercing . | . . . . Highest Corruption . | . . . . Average Corruption . | . . . . Corruption Purged . | . . . . Corruption Blocked . | . . . . Overload Shots . | . . . . Overflow Damage . | . . . . Projectiles . | . . . . Explosions . | . . . . Melee . | . . . . Knockbacks . | . . . . Impact . | . . . . Kinetic . | . . . . Secondary . | . . . . Self-Inflicted Damage . | . . . . Shots . | . . . . Rammed 1 | . 1 . . Targets Rammed 1 | . 1 . . Kicked . | . . . . Crushed . | . . . . Highest Temperature 184 | . 15 184 . Average Temperature 74 | . 6 95 . Received Heat Transfer 423 | . 276 147 . Siege Activations . | . . . . Robots Corrupted . | . . . . Combat Hostiles . | . . . . Parts Fried . | . . . . Impact Corruptions . | . . . . Robots Melted . | . . . . Combat Hostiles . | . . . . Parts Melted . | . . . . Heat Transferred . | . . . . Parts Sabotaged . | . . . . Parts Stolen . | . . . . Parts Stripped . | . . . . Power Chain Reactions . | . . . . Missiles Intercepted . | . . . . Alert | -11 -10 -10 -10 ------- Run | Jun Mat Min Exi Peak Influence 288 | . 288 100 . Initial 30 | . . 30 . Average 68 | . 76 51 . Maximum Alert Level 1 | . 1 . . Low Security (%) 91 | 100 88 100 . Level 1 8 | . 11 . . Level 2 . | . . . . Level 3 . | . . . . Level 4 . | . . . . Level 5 . | . . . . High Security . | . . . . Max Security . | . . . . Squads Dispatched 2 | . 2 . . Investigation . | . . . . Extermination . | . . . . Reinforcement 2 | . 2 . . Assault . | . . . . Garrison . | . . . . Intercept . | . . . . Searches Triggered . | . . . . Construction Impeded . | . . . . Haulers Reinforced . | . . . . Active Scanning Responses . | . . . . Cargo Convoy Interrupts . | . . . . Stealth | -11 -10 -10 -10 --------- Run | Jun Mat Min Exi Distress Signals 3 | . 3 . . Communications Jammed . | . . . . Distress Signals . | . . . . Times Spotted 32 | . 25 2 5 Peak Tracking Total 12 | . 4 2 12 Tactical Retreats 1 | . . . 1 Traps | -11 -10 -10 -10 ------- Run | Jun Mat Min Exi Traps Triggered 1 | . 1 . . Indirectly . | . . . . Trap Hack Attempts . | . . . . Triggered . | . . . . Disarmed . | . . . . Reprogrammed . | . . . . Reused . | . . . . Traps Extracted . | . . . . Installed . | . . . . Triggered . | . . . . Exploded 1 | . . . 1 Machines | -11 -10 -10 -10 ---------- Run | Jun Mat Min Exi Machines Disabled 2 | . . 2 . Max in Single Turn 2 | . . 2 . Machines Repaired . | . . . . Machines Sabotaged . | . . . . Overloaded Fab Kills . | . . . . Hacking | -11 -10 -10 -10 --------- Run | Jun Mat Min Exi Machines Accessed 9 | . 6 . 3 Terminals 6 | . 6 . . Fabricators . | . . . . Repair Stations . | . . . . Recycling Units . | . . . . Scanalyzers . | . . . . Garrison Access . | . . . . Total Hacks 35 | . 18 . 17 Successful 25 | . 8 . 17 Failed 10 | . 10 . . Catastrophic . | . . . . Database Lockouts . | . . . . Manual 16 | . 15 . 1 Terminals 18 | . 18 . . Fabricators . | . . . . Repair Stations . | . . . . Recycling Units . | . . . . Scanalyzers . | . . . . Garrison Access . | . . . . Terminal Hacks 22 | . 5 . 17 Record 16 | . . . 16 Terminal Index 1 | . 1 . . Unreport Threat 1 | . 1 . . Locate Traps 1 | . 1 . . Hauler Manifests 1 | . 1 . . Registered Components 1 | . 1 . . EX-Prototype ID Bank 1 | . . . 1 Fabricator Hacks . | . . . . Repair Station Hacks . | . . . . Recycling Unit Hacks . | . . . . Scanalyzer . | . . . . Garrison Access Hacks . | . . . . Unauthorized Hacks 3 | . 3 . . Terminals 3 | . 3 . . Track 1 | . 1 . . Botnet 2 | . 2 . . Fabricators . | . . . . Repair Stations . | . . . . Recycling Units . | . . . . Scanalyzers . | . . . . Garrison Access . | . . . . Data Cores Recovered . | . . . . Used . | . . . . Hacking Detections 6 | . 6 . . Full Trace Events . | . . . . Feedback Events . | . . . . Feedback Blocked . | . . . . Robot Schematics Acquired . | . . . . Robots Built . | . . . . Authchips . | . . . . Time . | . . . . Total Robot Build Rating . | . . . . Part Schematics Acquired . | . . . . Parts Built . | . . . . Authchips . | . . . . Time . | . . . . Total Part Build Rating . | . . . . Parts Repaired . | . . . . Time . | . . . . Parts Recycled . | . . . . Recycled Matter . | . . . . Retrieved Matter . | . . . . Retrieved Components . | . . . . Parts Scanalyzed . | . . . . Part Schematics Acquired . | . . . . Parts Damaged . | . . . . Bothacking | -11 -10 -10 -10 ------------ Run | Jun Mat Min Exi Used RIF Installer . | . . . . Robots Hacked . | . . . . Non-combat . | . . . . Combat . | . . . . Robot Hacks Applied . | . . . . Relay Couplers Released . | . . . . Fabnet Peak Effective % . | . . . . Robots Rewired . | . . . . Allies Hacked . | . . . . Hacks Repelled . | . . . . Allies | -11 -10 -10 -10 -------- Run | Jun Mat Min Exi Total Allies . | . . . . Largest Group . | . . . . Highest-Rated Group . | . . . . Highest-Rated Ally . | . . . . Total Orders . | . . . . Ally Attacks . | . . . . Total Damage . | . . . . Kills . | . . . . Allies Corrupted . | . . . . Allies Melted . | . . . . Intel | -11 -10 -10 -10 ------- Run | Jun Mat Min Exi Robot Analysis Total . | . . . . Derelict Logs Recovered 1 | . . 1 . Drone Launches . | . . . . Drone Recoveries . | . . . . Exploration | -11 -10 -10 -10 ------------- Run | Jun Mat Min Exi Turns Passed 2157 | 69 1371 385 332 Spaces Moved 1221 | 41 709 228 243 Core 15 | 15 . . . Treads 899 | 26 709 160 4 Legs . | . . . . Wheels 307 | . . 68 239 Hover . | . . . . Flight . | . . . . Fastest Speed 50 | 50 160 130 130 Average Speed 152 | 140 160 152 131 Slowest Speed 240 | 200 160 240 240 Overloaded Moves . | . . . . Propulsion Burnouts . | . . . . Robots Hopped . | . . . . Cave-ins Triggered . | . . . . Exploration Rate (%) 50 | 4 95 46 58 Regions Visited 3 Branch Regions 2 Pre-discovered Areas 1 | . . 1 . Known Exits Taken . | . . . . Unknown Exits Taken 3 | 1 1 1 . Scrap Searched 1 | . . 1 . Spaces Dug . | . . . . Terrain Destroyed . | . . . . Melee . | . . . . Projectile . | . . . . AOE . | . . . . Terrain Rammed . | . . . . Walls Destroyed . | . . . . Machines Disabled . | . . . . Actions | -11 -10 -10 -10 --------- Run | Jun Mat Min Exi Total 1400 | 51 854 240 255 Wait 9 | . 9 . . Move 1218 | 40 708 227 243 Hop . | . . . . Pick Up 31 | 6 23 . 2 Fast Attach 10 | 4 6 . . Attach 5 | 1 1 1 2 Detach 2 | . 2 . . Swap 8 | . 6 . 2 Drop 25 | . 21 . 4 Fire 89 | . 77 12 . Melee 1 | . . . 1 Ram . | . . . . Kick . | . . . . Crush 1 | . 1 . . Escape Stasis . | . . . . Rewire 1 | . . . 1 Trap . | . . . . Miscellaneous . | . . . . Route ------- -11/Junkyard -10/Materials (discovered 5 exits: [*Mat x3] / [*Min x2]) -10/Mines -10/Exiles History --------- Turn | Location | Event 10 | -11/Junkyard | Discovered new exit (range 16) 70 | -11/Junkyard | Entered Materials 289 | -10/Materials | Core integrity fell below 50% 302 | -10/Materials | Build established: Mutant 473 | -10/Materials | Discovered new exit (range 15) 766 | -10/Materials | Discovered new exit (range 7) 891 | -10/Materials | Discovered new exit (range 8) 1108 | -10/Materials | Discovered new exit (range 16) 1254 | -10/Materials | Discovered new exit (range 7) 1441 | -10/Materials | Entered Mines 1555 | -10/Mines | Found a damaged Exp. Sensor Array with a note attached 1621 | -10/Mines | Learned location of Zion (-6) 1819 | -10/Mines | Deemed a non-threat by the Exiles lab entrance 1820 | -10/Mines | Discovered new exit (range 5) 1826 | -10/Mines | Entered Exiles 1857 | -10/Exiles | Met 8R-AWN 1881 | -10/Exiles | Met EX-HEX 1920 | -10/Exiles | Met EX-BIN 1943 | -10/Exiles | Aligned with FarCom system 1944 | -10/Exiles | Given EX-Vault access code 1990 | -10/Exiles | Opened EX-Vault 2008 | -10/Exiles | Found Latent Energy Streamer 2037 | -10/Exiles | Warned to stay clear of 0b10 Research branches 2082 | -10/Exiles | Met EX-DEC 2145 | -10/Exiles | Attacked by the Exiles 2157 | -10/Exiles | Core integrity fell below 20% 2158 | -10/Exiles | Destroyed by DAS Turret with DAS Cannon Last Messages --------------- 02084_ EX-DEC: "Oops, I hope HEX didn't hear that..." 02122_ Dropped Lrg. Storage Unit. 02143_ Attempting to rewire A-02 Transporter. 02143_ A-02 Transporter is unpowered. 02144_ Sneak attack on A-02 Transporter. 02145_ EXILES: Hostile robot within lab perimeter. Defensive protocols time, folks! 02148_ Acquired 7 matter. 02148_ Com. Wheel destroyed. 02149_ Machine disabled. 02150_ Dropped Rigged Rnf. Deuterium Engine. 02152_ Lgt. Treads destroyed. 02153_ Machine disabled. 02153_ Ion Engine destroyed. 02153_ Dropped Hcp. Storage Unit. 02156_ Rigged Rnf. Deuterium Engine explodes. 02156_ as-46055 destroyed. 02156_ as-20537 destroyed. 02156_ A-02 Transporter destroyed. 02156_ Hrd. Light Armor Plating destroyed. Map ----- +----------------------------------------------------+ | ?????????????????????????????# """##??? | | ?????????????????????????????#" "X" """""??? | | ?????????????????????????????#" """ #???? | | ??????????????? ?????????????#" """""""""#???? | | ???????????????" ??????????##" ###########???? | | ???????????????# ?????????##"" #?????????????? | | ?????????????### ##??######"" #?????????????? | | ?????????#####X# #"###""""""" ##????????????? | | ???????? """""" " "" ##???######### | | ??????? "" """ " #####"""""""" | | ??????? " " " """ "" | | ?????? "" " | | ?????? " | | ?????? | | ??????# | | ???????#" | | ???????#""" """""" | | ???????#" ######""" | | ???????"" ""##????#####""" | | ??????#""" """##?????????##""" | | ??????""" """##???????????#"""" | | ??????""" ""#????????????#"" | | ??????"" ##############"""" | | ??????""" ##aa!*;;;""" | | ??????"" ][= | | ??????#"" %@!!! %c% a | | ???????"""" ]][ a | | ???????# " | | ???????#" "" """ | | ???????#"""" ""## ##""" " " ""#" | | ???????#"" ""#### #??###""" """##"" | | ????????" """"##??# #??????#"""???### | | ????????""" """#??## ####????????????? | | ????????# ""##??#! "!#????????????? | | ????????#"" """##???#" !#????????????? | | ??????????""" #?????#" "#????????????? | | ???????????"""" ##?????#!!""!"#????????????? | | ????????????# #??????########????????????? | | ?????????????#### #???????????????????????????? | | ????????????????## ????????????????????????????? | | ?????????????????# ????????????????????????????? | | ??????????????????? ????????????????????????????? | | ?????????????????????????????????????????????????? | | ?????????????????????????????????????????????????? | | ?????????????????????????????????????????????????? | | ?????????????????????????????????????????????????? | | ?????????????????????????????????????????????????? | | ?????????????????????????????????????????????????? | | ?????????????????????????????????????????????????? | | ?????????????????????????????????????????????????? | +----------------------------------------------------+ Best States ------------- Heat Dissipation 25 Energy Generation 14 Energy Capacity 250 Matter Stores 300 Matter Capacity 300 Sight Range 16 Terrain Scan Density 10 Armor Coverage 150 Propulsion Shielding 33 Utility Shielding 33 Evasion (%) 40 Recoil Reduction 2 Item Schematics ----------------- None Robot Schematics ------------------ None Fabricated ------------ Nothing Alien Tech Used ----------------- None Achievements -------------- None Challenges ------------ None Game ------ Seed VortexSeismicBlaster Manual? 0 Play Time 00:17:18 Cumulative 341.2 hours Start 2023.03.18 @ 15:24:50 End 2023.03.18 @ 15:39:18 Sessions 1 Manual Loads 0 Difficulty Rogue Special Mode None Game No. 421 Rogue 421 Adventurer 0 Explorer 0 Win Type - Total 36 Types 26/0/7/3/0/0/0/0/0 Lore% 85 Gallery% 80 Achievement% 59 Wizard Run 0 Options --------- ASCII 0 Keyboard 1 Movement Numpad Keybinds 0 Fullscreen 1 Font 24/Smallcaps Map View 76x50 Tactical HUD 1 Map Filters NONE Filters NONE Steam 1 RUN: 9751c017-8532-4c18-a7bd-8f3bba5e9b7e